bitfinex/quotes_ETHUSD_20220308
["timestamp","ask_amount","ask_price","bid_price","bid_amount"]
[1646698576306,0.0451746,2511.6,2511.4,0.199]
[1646698576508,7.46e-05,2511.6,2511.5,18.0914]
[1646698576711,0.0390301,2511.8,2511.7,12.5914]
[1646698576712,3.01e-05,2511.8,2511.7,12.5914]
[1646698576908,0.0211083,2512.2,2511.8,5.5]
[1646698577211,0.0211083,2512.2,2512.1,2.98298639]
[1646698577409,0.06475072,2512.6,2512.2,5.5]
[1646698577410,3.8297684,2512.5,2512.2,5.5]
[1646698577659,0.0635132,2512.6,2512.4,2.98298639]
[1646698577856,0.0635132,2512.6,2512.5,0.491]
[1646698578055,0.0635132,2512.6,2512.5,0.791]
[1646698578455,0.0753006,2512.7,2512.6,6.62314263]
[1646698578656,0.1154779,2512.8,2512.7,5.5]
[1646698578855,7.79e-05,2512.8,2512.7,25.06538639]
[1646698579160,2.481797,2513.1,2512.9,18.0914]
[1646698579161,0.0225336,2513.1,2512.9,18.0914]
[1646698579360,6.9977177,2513.6,2513.0,19.16398639]
[1646698579361,4e-05,2513.2,2513.0,19.16398639]
[1646698579557,2.995,2514.4,2513.0,19.16398639]
[1646698579558,0.01547612,2513.7,2513.5,0.99446]
[1646698579762,0.0198652,2514.0,2513.6,7.27398639]
[1646698579956,0.04472314,2514.3,2514.0,5.5]
[1646698580157,0.04472314,2514.3,2514.2,2.88298639]
[1646698580365,0.0554495,2514.7,2514.3,5.5]
[1646698580562,0.009228,2514.7,2514.5,9.37711639]
[1646698580760,0.009228,2514.7,2514.6,3.991]
[1646698580961,0.0397122,2514.8,2514.7,5.5]
[1646698581161,10.021136,2515.0,2514.9,0.9939563]
[1646698581162,0.0203976,2515.0,2514.9,0.9939563]
[1646698581429,0.0203976,2515.0,2514.9,2.88298639]
[1646698582021,0.0203976,2515.0,2514.9,3.88298639]
[1646698582225,0.0152741,2515.1,2515.0,4.5]
[1646698582426,0.0191573,2515.1,2514.9,6.17114639]
[1646698582621,0.0191573,2515.1,2514.9,4.18298639]
[1646698582622,0.07599964,2515.1,2514.9,4.18298639]
[1646698582822,0.07599964,2515.1,2514.9,4.48298639]
[1646698583023,0.05627392,2515.0,2514.9,4.18298639]
[1646698583424,0.05627392,2515.0,2514.9,3.88298639]
[1646698583627,0.05627392,2515.0,2514.9,4.87717639]
[1646698583823,0.05627392,2515.0,2514.9,3.87837639]
[1646698584025,0.05627392,2515.0,2514.9,2.88418639]
[1646698584230,0.05627392,2515.0,2514.9,6.38418639]
[1646698584423,5.5,2514.9,2514.6,1.98812]
[1646698584626,0.05627392,2515.0,2514.0,0.9944579]
[1646698584826,0.96417401,2515.1,2513.8,0.1988]
[1646698584827,0.05513707,2514.8,2513.8,0.1988]
[1646698585027,0.97051112,2515.1,2513.8,0.1988]
[1646698585028,0.0373016,2514.7,2513.8,0.1988]
[1646698585252,0.09062711,2514.7,2513.8,1.19339]
[1646698585457,0.05400023,2514.6,2513.8,2.32357651]
[1646698585654,0.05400023,2514.6,2514.0,0.99457]
[1646698585853,0.03605846,2514.7,2514.0,0.99457]
[1646698585854,0.0534318,2514.5,2514.0,0.99457]
[1646698586054,0.00510147,2514.4,2514.0,0.99457]
[1646698586254,0.05796485,2514.4,2514.0,0.99457]
[1646698586457,0.05229496,2514.3,2514.2,1.01334968]
[1646698587157,0.05229496,2514.3,2514.0,0.99457]
[1646698587557,0.05172653,2514.2,2514.0,0.99457]
[1646698588057,0.05115811,2514.1,2514.0,0.99457]
[1646698588254,0.05015811,2514.1,2514.0,1.87918837]
[1646698588453,0.05015811,2514.1,2514.0,0.99457]
[1646698589725,0.05015811,2514.1,2514.0,2.11382513]
[1646698590437,0.01996247,2514.6,2514.1,5.5501]
[1646698590630,0.0038832,2514.8,2514.3,12.5914]
[1646698590931,0.01996247,2514.6,2514.4,3.9014]
[1646698591131,0.01996247,2514.6,2514.5,13.71522804]
[1646698591429,8.32e-05,2514.8,2514.5,18.91662804]
[1646698591830,0.0152741,2515.1,2515.0,13.18387]
[1646698592030,0.0200528,2515.2,2515.1,5.493483]
[1646698592231,0.0355856,2515.2,2515.1,5.984483]
[1646698592431,0.0832933,2515.3,2515.2,17.19]
[1646698592651,0.0832933,2515.3,2515.2,12.681]
[1646698592853,0.0832933,2515.3,2515.2,13.981]
[1646698593148,0.0832933,2515.3,2515.2,1.491]
[1646698593349,0.0832933,2515.3,2515.2,0.491]
[1646698593749,0.0499993,2516.2,2515.4,0.99392]
[1646698593948,0.0499993,2516.2,2515.5,1.48493]
[1646698594149,0.0499993,2516.2,2515.5,0.791]
[1646698594352,7.3124,2516.9,2515.7,5.5]
[1646698594549,7.3124,2516.9,2515.9,5.5]
[1646698594550,0.0203261,2516.4,2515.9,5.5]
[1646698594752,2.61e-05,2516.4,2516.1,1.05209614]
[1646698594953,0.0387804,2517.1,2516.8,0.88279959]
[1646698594954,0.0200577,2517.1,2516.8,0.88279959]
[1646698595554,0.0200577,2517.1,2516.7,2.47764]
[1646698595755,0.0768485,2517.2,2516.9,5.5]
[1646698595756,0.0031064,2517.2,2516.9,5.5]
[1646698595955,0.0031064,2517.2,2516.9,5.991]
[1646698596155,0.0031064,2517.2,2516.9,6.98432]
[1646698596406,2.56e-05,2517.3,2517.0,7.48593]
[1646698596605,0.0635132,2517.6,2517.2,5.5]
[1646698596801,0.0635132,2517.6,2517.5,1.19002335]
[1646698597001,0.0635132,2517.6,2517.5,1.68102335]
[1646698597408,0.0145101,2518.2,2517.5,1.68102335]
[1646698597409,8.96e-05,2517.8,2517.7,5.5]
[1646698597603,0.01488474,2518.5,2517.7,5.5]
[1646698597604,0.095125,2520.1,2517.9,12.2096]
[1646698597805,0.0155584,2518.5,2518.2,1.00479893]
[1646698598007,0.06401938,2518.8,2518.4,4.07480638]
[1646698598202,0.06401938,2518.8,2518.4,2.978]
[1646698599104,0.01401938,2518.8,2518.4,2.978]
[1646698599302,0.00395463,2518.7,2518.4,2.978]
[1646698599904,0.00395463,2518.7,2517.9,5.95569]
[1646698599905,0.74713043,2518.3,2517.6,2.99178706]
[1646698600169,0.74713043,2518.3,2517.6,2.98618]
[1646698600360,0.74713043,2518.3,2517.7,0.9930842]
[1646698600565,0.74713043,2518.3,2517.6,1.0]
[1646698600762,3.5,2517.6,2517.3,3.0]
[1646698600959,0.97536174,2517.7,2516.5,4.17042644]
[1646698600960,0.87536174,2517.7,2516.5,4.17042644]
[1646698601160,0.87536174,2517.7,2516.5,0.67042644]
[1646698601362,3.0,2517.3,2516.5,0.67042644]
[1646698601561,3.0,2517.3,2516.5,0.5]
[1646698601760,4.791,2517.3,2515.8,1.98776]
[1646698601960,3.0,2516.9,2515.5,0.9941]
[1646698602162,3.0,2516.9,2515.4,31.74783856]
[1646698602163,3.0,2516.7,2515.4,27.77326856]
[1646698602363,3.0,2516.4,2515.4,27.77326856]
[1646698602562,1.99438,2516.7,2515.4,27.77326856]
[1646698602563,0.49219478,2516.6,2515.4,27.77326856]
[1646698602762,4.99438,2516.7,2515.8,1.20118997]
[1646698602763,1.03586591,2516.5,2515.8,1.20118997]
[1646698602962,0.00519475,2516.3,2515.8,1.20118997]
[1646698603559,0.00519475,2516.3,2515.9,0.1986]
[1646698603760,0.00119478,2516.9,2515.9,0.1986]
[1646698604006,0.00519483,2516.2,2515.4,0.20273532]
[1646698604407,0.00519483,2516.2,2515.4,1.19688532]
[1646698604608,0.00519483,2516.2,2515.4,0.99828532]
[1646698604808,0.00519483,2516.2,2515.6,1.08575088]
[1646698605108,0.98776729,2516.3,2515.2,1.98826]
[1646698605310,0.00505851,2515.9,2515.4,0.00368043]
[1646698605510,0.00505851,2515.9,2515.4,0.99783043]
[1646698605917,0.00505851,2515.9,2515.4,0.00368043]
[1646698606115,0.90020903,2515.6,2514.9,0.0007168]
[1646698606613,0.90020903,2515.6,2515.4,0.00368043]
[1646698607312,0.90020903,2515.6,2514.9,0.0007168]
[1646698607761,0.00505804,2515.9,2515.4,0.00368044]
[1646698608557,1.23569478,2516.4,2514.9,3.11966898]
[1646698608558,1.23569478,2516.4,2514.9,4.11392898]
[1646698608759,1.22749973,2515.9,2515.4,0.00345031]
[1646698609764,1.22251048,2515.9,2514.9,1.9892468]
[1646698609960,1.2271553,2515.9,2515.4,0.00345031]
[1646698610966,1.22251048,2515.9,2514.9,1.9892468]
[1646698611162,1.18307248,2515.3,2514.9,0.0007168]
[1646698612005,0.00119478,2515.6,2514.9,0.0007168]
[1646698612205,1.47184482,2515.9,2514.9,0.0007168]
[1646698612206,0.00119478,2515.8,2514.9,0.0007168]
[1646698612407,1.17185392,2515.9,2515.0,0.00348385]
[1646698612606,0.00119478,2515.8,2515.0,0.00348385]
[1646698612807,1.17185392,2515.9,2515.0,0.00348385]
[1646698613206,1.1357178,2515.8,2515.0,0.00348385]
[1646698613407,1.1357178,2515.8,2515.1,0.9943]
[1646698613613,1.1357178,2515.8,2515.3,0.00348337]
[1646698614009,1.17185443,2515.9,2515.3,0.00348337]
[1646698614210,0.00465443,2515.9,2515.3,0.00348337]
[1646698614612,0.00465443,2515.9,2515.1,0.9943]
[1646698614613,0.00119478,2516.3,2515.1,0.9943]
[1646698614911,0.00467743,2515.9,2515.4,0.00348329]
[1646698615599,1.21513933,2515.7,2515.4,0.00348329]
[1646698615800,4.21513933,2515.7,2514.9,0.0007168]
[1646698616001,4.21513933,2515.7,2514.1,0.1986]
[1646698616002,3.0,2515.2,2514.1,0.1986]
[1646698616202,0.491,2515.1,2514.1,0.1986]
[1646698616598,0.491,2515.1,2513.9,1.26722336]
[1646698616599,0.006308,2514.1,2513.9,1.26722336]
[1646698616797,0.89860143,2514.6,2514.2,0.00943945]
[1646698616997,0.00119478,2515.0,2514.2,0.00943945]
[1646698617201,0.00119478,2515.2,2514.2,1.00407945]
[1646698617399,0.00119478,2515.3,2514.2,1.00407945]
[1646698617899,0.00119478,2515.3,2514.2,0.00943945]
[1646698618101,1.14970351,2515.0,2514.3,1.1109023]
[1646698618300,1.14970351,2515.0,2514.2,0.00943945]
[1646698618703,4.14970351,2515.0,2514.2,0.00943945]
[1646698619103,1.14970351,2515.0,2514.2,0.00943945]
[1646698619700,1.14970351,2515.0,2514.5,0.00413091]
[1646698620107,3.9949181,2514.8,2514.5,0.00413091]
[1646698620307,3.0,2514.6,2514.5,0.00413091]
[1646698620507,3.491,2514.6,2514.5,0.00413091]
[1646698620905,3.491,2514.6,2514.2,0.00943945]
[1646698621106,0.8759645,2514.3,2514.2,0.00943945]
[1646698621309,1.1759645,2514.3,2514.2,0.00943945]
[1646698621705,3.48128,2514.6,2514.2,0.00943945]
[1646698621706,0.491,2514.6,2514.2,0.00943945]
[1646698621909,0.00119478,2515.1,2514.2,0.00943945]
[1646698622107,7.49349478,2515.2,2514.2,0.00943945]
[1646698622305,0.99476,2515.0,2514.2,0.00943945]
[1646698622753,3.0,2514.8,2514.2,0.00943945]
[1646698623154,1.15163745,2514.5,2514.2,0.00943945]
[1646698623554,2.14660745,2514.5,2514.2,0.00943945]
[1646698623752,3.98093638,2514.9,2514.2,0.00943945]
[1646698623956,2.48082,2514.9,2514.2,0.00943945]
[1646698624153,3.0,2514.7,2514.2,0.00943945]
[1646698624353,3.0,2514.5,2514.2,0.00943945]
[1646698624554,3.0,2514.5,2514.4,0.00366626]
[1646698624756,5.32386614,2514.5,2514.4,0.00366626]
[1646698625358,5.32386614,2514.5,2514.2,0.00943945]
[1646698625562,0.00119478,2514.9,2514.2,0.00943945]
[1646698625763,7.0013,2515.2,2514.3,0.00366641]
[1646698625764,4.20119478,2515.2,2514.3,0.00366641]
[1646698625961,4.2,2515.2,2514.3,0.00366641]
[1646698626400,5.1947298,2515.2,2514.3,0.00366641]
[1646698626606,5.1947298,2515.2,2514.3,0.89106338]
[1646698626607,0.99476,2515.0,2514.3,0.89106338]
[1646698626802,1.2,2515.2,2514.4,3.5]
[1646698627003,1.2,2515.2,2514.6,0.00366597]
[1646698627803,1.2,2515.2,2514.8,1.97039775]
[1646698628003,1.2242,2515.4,2514.8,1.97039775]
[1646698628204,0.00119478,2515.7,2514.8,1.97384501]
[1646698628403,10.4651,2515.8,2514.8,0.97938501]
[1646698628404,4.52889478,2515.8,2514.8,0.97938501]
[1646698628605,0.00465806,2515.9,2514.8,0.97938501]
[1646698628804,0.00465806,2515.9,2514.8,1.38078501]
[1646698629004,0.00465806,2515.9,2515.0,0.99436]
[1646698629206,0.00119478,2516.0,2515.0,0.99436]
[1646698629403,1.2447,2516.1,2515.4,0.87131263]
[1646698629404,0.00466335,2515.9,2515.4,0.87131263]
[1646698630160,0.00466335,2515.9,2515.3,0.99444]
[1646698630355,5.69266375,2516.1,2515.3,0.99444]
[1646698630554,5.69266375,2516.1,2515.4,0.00344644]
[1646698630555,0.00466378,2515.9,2515.4,0.00344644]
[1646698631157,0.00466378,2515.9,2515.5,0.99443]
[1646698631655,4.44796375,2516.1,2515.5,0.99443]
[1646698631860,0.00467318,2515.9,2515.5,0.99443]
[1646698632457,3.00467318,2515.9,2515.5,0.99443]
[1646698632657,3.491,2515.9,2514.8,1.98898]
[1646698632857,3.791,2515.9,2514.8,1.98898]
[1646698633056,3.79599758,2515.9,2515.4,0.00347779]
[1646698633255,3.79599758,2515.9,2515.4,0.90167282]
[1646698633458,0.49599758,2515.9,2515.4,0.90167282]
[1646698633659,0.00499758,2515.9,2515.4,0.90167282]
[1646698633920,0.00119478,2516.3,2515.4,0.89819503]
[1646698634115,5.6851,2516.4,2515.4,0.89819503]
[1646698634315,0.0049975,2515.9,2515.4,0.90167282]
[1646698635120,0.0049975,2515.9,2515.2,1.98865]
[1646698635325,3.49599607,2515.9,2515.4,0.00347303]
[1646698635626,3.0,2515.7,2515.4,0.00347303]
[1646698635822,3.791,2515.7,2515.4,0.00347303]
[1646698636021,1.791,2515.7,2515.4,0.00347303]
[1646698636221,0.791,2515.7,2515.0,1.14344561]
[1646698636422,1.20599436,2515.6,2515.1,0.99457]
[1646698636622,0.791,2515.7,2515.4,0.00347303]
[1646698636823,0.00482794,2515.9,2515.4,0.00347303]
[1646698637421,0.791,2516.2,2515.0,1.14344561]
[1646698637665,0.791,2516.2,2515.5,1.11705232]
[1646698637666,0.00482809,2515.9,2515.5,1.11705232]
[1646698637859,0.00482809,2515.9,2515.6,3.5]
[1646698638255,0.00482809,2515.9,2515.5,2.11135232]
[1646698638454,0.00482809,2515.9,2515.5,5.61135232]
[1646698638657,0.00119478,2516.3,2515.5,2.11135232]
[1646698638855,1.1941,2516.4,2516.1,1.22361293]
[1646698639059,0.01930906,2516.6,2516.1,3.21150293]
[1646698639257,0.01930906,2516.6,2516.1,2.21756293]
[1646698639857,0.007,2516.7,2516.1,2.21756293]
[1646698640261,0.00485212,2516.5,2516.1,2.21756293]
[1646698640462,0.00485212,2516.5,2516.2,0.99395]
[1646698640863,0.00485212,2516.5,2516.2,1.98797]
[1646698641064,0.007,2516.7,2516.2,1.98797]
[1646698641265,0.00485212,2516.5,2516.2,1.98797]
[1646698642308,1.17208156,2516.7,2516.2,0.99395]
[1646698642606,0.00485207,2516.5,2516.1,1.98789]
[1646698643012,3.0,2516.3,2515.4,0.00347364]
[1646698643207,0.491,2516.2,2515.4,0.00347364]
[1646698643407,0.491,2516.2,2515.7,1.06712411]
[1646698643608,0.491,2516.2,2515.4,1.99218364]
[1646698643810,0.491,2516.2,2515.4,0.00347364]
[1646698644007,0.00468056,2516.0,2515.4,0.00347364]
[1646698644207,0.491,2515.9,2515.4,0.00347364]
[1646698644610,0.00468056,2516.0,2515.6,1.21200267]
[1646698644816,2.3721,2516.3,2515.6,2.19615661]
[1646698644817,2.37329368,2516.3,2515.6,2.19615661]
[1646698645010,0.00468037,2515.9,2515.6,2.19615661]
[1646698645264,0.00468037,2515.9,2515.6,2.20622267]
[1646698645864,2.3721,2516.3,2515.8,0.9942]
[1646698646065,0.00819368,2516.7,2515.8,0.9942]
[1646698646266,0.00468229,2515.9,2515.8,0.9942]
[1646698647068,1.24614497,2516.6,2515.8,0.9942]
[1646698647069,0.00119368,2516.5,2515.8,0.9942]
[1646698647268,0.9740016,2516.2,2515.6,2.19630661]
[1646698647472,0.3,2516.6,2515.6,1.20193661]
[1646698647473,0.00467471,2516.0,2515.6,1.20193661]
[1646698648265,0.491,2516.3,2515.6,1.20193661]
[1646698648667,0.00467473,2515.9,2515.6,1.20193661]
[1646698648905,0.00467473,2515.9,2515.7,0.99434]
[1646698649104,0.00467473,2515.9,2515.4,1.99207956]
[1646698649714,0.491,2515.8,2515.4,0.00347956]
[1646698649910,0.491,2515.8,2515.4,0.00347282]
[1646698650114,0.441,2515.8,2515.4,0.00347282]
[1646698650309,0.741,2515.8,2515.4,0.00347282]
[1646698650708,0.741,2515.8,2515.2,3.02805338]
[1646698650913,0.741,2515.8,2515.2,1.98887]
[1646698651108,0.741,2515.8,2515.4,0.00347282]
[1646698651512,2.98993394,2515.6,2515.4,0.00347282]
[1646698651713,5.5,2515.4,2514.4,0.99469]
[1646698651911,6.51539744,2515.4,2514.7,0.90983671]
[1646698652111,0.491,2515.3,2514.7,0.90983671]
[1646698652510,0.491,2515.3,2514.9,0.01006606]
[1646698652765,0.00119368,2515.7,2515.2,1.98876]
[1646698652959,0.49567273,2515.9,2515.3,1.17353068]
[1646698653159,0.491,2515.9,2515.2,0.99438]
[1646698653357,0.491,2515.9,2514.9,1.98878]
[1646698653558,3.48093394,2515.9,2514.9,1.98878]
[1646698654056,3.78093394,2515.9,2514.9,1.98878]
[1646698654257,4.78093394,2515.9,2514.9,1.98878]
[1646698654456,4.78093394,2515.9,2515.0,3.10209823]
[1646698654658,0.00363376,2515.8,2515.0,3.10209823]
[1646698654858,1.23354229,2515.6,2515.0,3.10209823]
[1646698655058,0.491,2515.6,2515.0,3.10209823]
[1646698655264,0.791,2515.6,2515.0,3.10209823]
[1646698655860,0.791,2515.6,2515.2,0.00412108]
[1646698656904,0.791,2515.6,2515.0,3.10209823]
[1646698657105,0.791,2515.6,2515.3,0.00412091]
[1646698658106,0.791,2515.6,2515.2,1.98879]
[1646698658307,0.791,2515.6,2515.5,1.17080424]
[1646698659211,0.49219368,2516.3,2515.5,1.17080424]
[1646698659408,3.533,2516.4,2515.6,3.5]
[1646698659610,3.533,2516.4,2515.7,0.01006606]
[1646698659611,0.00486328,2515.8,2515.7,0.01006606]
[1646698660465,3.533,2516.4,2515.8,0.99406]
[1646698660660,3.533,2516.4,2516.2,1.04789081]
[1646698660661,2.3629,2516.4,2516.2,1.04789081]
[1646698660860,0.01895535,2516.4,2516.2,1.04789081]
[1646698661659,0.007,2516.7,2516.2,1.04789081]
[1646698662062,0.00474026,2516.4,2516.2,1.04789081]
[1646698662458,0.00474026,2516.4,2516.3,0.99403]
[1646698662659,0.00474026,2516.4,2516.2,3.03594081]
[1646698662861,0.007,2516.7,2516.2,1.98805]
[1646698663260,0.00474026,2516.4,2516.2,1.98805]
[1646698663907,0.00474026,2516.4,2516.2,2.97860364]
[1646698664105,0.007,2516.7,2516.2,2.97860364]
[1646698664505,0.00465708,2516.4,2516.2,2.97860364]
[1646698665310,0.007,2516.7,2516.2,1.98805]
[1646698665511,0.00466113,2516.4,2516.2,1.98805]
[1646698666311,0.00466113,2516.4,2516.3,0.93009141]
[1646698666513,0.007,2516.7,2516.3,0.93009141]
[1646698666714,0.007,2516.7,2516.2,1.98805]
[1646698666913,0.007,2516.7,2515.9,0.1986]
[1646698666914,0.00466113,2516.4,2515.9,0.1986]
[1646698667113,0.00466113,2516.4,2515.8,0.1986]
[1646698667768,0.92016542,2516.1,2515.8,0.1986]
[1646698667967,5.5,2515.9,2515.3,0.00347156]
[1646698668169,0.491,2515.8,2515.3,0.00347156]
[1646698668369,0.791,2515.8,2515.3,0.00347156]
[1646698668965,0.791,2515.8,2515.2,2.16831118]
[1646698669167,0.49567561,2515.8,2515.3,0.00347156]
[1646698669967,0.00467561,2515.8,2515.3,0.00347156]
[1646698670166,1.4091175,2516.2,2515.2,2.16831118]
[1646698670371,1.4091175,2516.2,2515.6,0.01006606]
[1646698670372,0.00467561,2515.8,2515.6,0.01006606]
[1646698670575,0.00467561,2515.8,2515.6,1.99836606]
[1646698670769,0.00467561,2515.8,2515.7,3.5]
[1646698670983,0.00467561,2515.8,2515.7,3.9014]
[1646698671270,1.2046,2516.4,2515.7,1.42700507]
[1646698671508,1.2046,2516.4,2516.3,1.1857912]
[1646698671706,1.2046,2516.4,2516.3,2.1798012]
[1646698671707,0.01869893,2516.4,2516.3,2.1798012]
[1646698671906,0.01869893,2516.4,2516.1,1.98802]
[1646698672307,0.01869893,2516.4,2515.6,0.01006606]
[1646698672509,0.49919368,2516.7,2515.6,0.01006606]
[1646698672709,0.00467489,2516.4,2515.7,1.98833]
[1646698673108,0.00467489,2516.4,2515.8,1.0590243]
[1646698673516,0.00467489,2516.4,2515.4,0.01006606]
[1646698673712,1.6642359,2516.5,2515.5,1.62053003]
[1646698673713,1.17442958,2516.5,2515.5,1.62053003]
[1646698673913,1.17442958,2516.5,2515.5,1.98848]
[1646698673914,0.6896,2516.4,2515.5,1.98848]
[1646698674312,0.9896,2516.4,2515.5,1.98848]
[1646698674716,0.9896,2516.4,2515.8,1.00167095]
[1646698675169,0.491,2516.4,2515.8,1.00167095]
[1646698675361,0.791,2516.4,2515.8,1.00167095]
[1646698676463,0.00499281,2516.2,2515.8,1.00167095]
[1646698677264,0.491,2516.4,2515.9,0.9942]
[1646698677664,0.00499285,2516.1,2515.9,0.9942]
[1646698677867,0.00499285,2516.1,2516.0,3.91146606]
[1646698678073,0.0199684,2516.5,2516.2,0.4014]
[1646698678268,0.0199684,2516.5,2516.4,0.01006606]
[1646698678468,0.007,2516.7,2516.4,1.40525606]
[1646698678668,0.007,2516.7,2516.3,0.99379]
[1646698678912,1.12497588,2516.7,2516.3,0.99379]
[1646698679109,1.12497588,2516.7,2516.2,1.99763606]
[1646698679110,1.12497588,2516.7,2516.2,1.98757]
[1646698679310,1.12497588,2516.7,2516.1,0.00740801]
[1646698679512,0.491,2516.6,2516.1,0.00740801]
[1646698680212,1.43657542,2516.3,2516.1,0.00740801]
[1646698680411,1.13657542,2516.3,2516.1,0.00740801]
[1646698681213,1.14052894,2516.3,2516.1,0.00740801]
[1646698682212,1.13657542,2516.3,2516.1,0.00740801]
[1646698682511,1.1417647,2516.3,2516.1,0.00740801]
[1646698683361,0.491,2516.2,2516.1,0.00740801]
[1646698683560,0.491,2516.2,2516.1,8.01e-06]
[1646698683759,12.681,2516.2,2516.1,8.01e-06]
[1646698683965,17.31120794,2516.2,2515.7,4.075e-05]
[1646698684167,15.17993394,2515.8,2514.2,0.00943945]
[1646698684363,15.17993394,2515.8,2514.3,1.62103318]
[1646698684364,12.19,2515.5,2514.3,1.62103318]
[1646698684564,14.1799837,2515.0,2514.3,1.62103318]
[1646698684770,5.5,2514.8,2513.6,3.5]
[1646698684963,0.01089365,2513.6,2513.3,0.72691608]
[1646698685366,1.00623365,2513.6,2513.4,1.62134028]
[1646698685566,1.00623365,2513.6,2512.7,0.72691608]
[1646698685567,1.49723365,2513.6,2512.7,0.72691608]
[1646698685765,1.06371123,2513.3,2512.6,1.19488971]
[1646698685965,1.55471123,2513.3,2512.6,2.19021971]
[1646698686168,1.55471123,2513.3,2512.6,1.19488971]
[1646698686413,1.55471123,2513.3,2512.3,0.73698214]
[1646698686414,2.85015123,2513.3,2512.3,0.73698214]
[1646698686621,2.85015123,2513.3,2512.3,0.01006606]
[1646698686813,4.15015123,2513.3,2512.3,0.01006606]
[1646698687216,1.09073917,2512.6,2512.3,0.01006606]
[1646698688329,1.88173917,2512.6,2511.7,0.72691608]
[1646698688517,0.97994964,2512.2,2511.6,0.73698214]
[1646698688718,0.97994964,2512.2,2511.6,0.01006606]
[1646698689222,0.97994964,2512.2,2510.9,0.72691608]
[1646698689223,0.491,2512.1,2510.9,0.72691608]
[1646698689417,4.4757,2512.1,2510.5,0.72691608]
[1646698689617,0.491,2512.1,2511.4,0.01006606]
[1646698689826,0.491,2512.1,2510.6,4.22691608]
[1646698689827,0.491,2512.1,2511.8,0.00412184]
[1646698690017,1.2224,2512.2,2511.8,0.00412184]
[1646698690667,1.2224,2512.2,2511.4,0.01006606]
[1646698690865,1.15808141,2511.9,2510.7,3.51209144]
[1646698691069,1.15808141,2511.9,2510.8,0.01006606]
[1646698691265,1.64908141,2511.9,2510.8,0.01006606]
[1646698691465,1.94908141,2511.9,2510.8,0.01006606]
[1646698692169,1.15390638,2511.3,2511.2,0.00365209]
[1646698692368,1.15390638,2511.3,2511.2,5.209e-05]
[1646698692369,0.791,2511.3,2511.2,5.209e-05]
[1646698692867,0.791,2511.3,2509.7,3.5]
[1646698692868,0.98146141,2511.3,2509.7,3.5]
[1646698693068,0.1991,2511.2,2509.6,2.60686778]
[1646698693270,0.491,2511.1,2509.7,3.5]
[1646698693573,1.1676,2511.3,2511.0,0.01006606]
[1646698694011,0.1991,2511.2,2511.0,0.01006606]
[1646698694414,0.1991,2511.2,2510.9,0.03495169]
[1646698694812,0.491,2511.1,2510.9,0.03495169]
[1646698695014,0.791,2511.1,2510.9,0.03495169]
[1646698695214,5.8,2510.9,2509.7,0.01006606]
[1646698695416,0.491,2510.8,2509.7,0.01006606]
[1646698695617,1.18226608,2509.8,2509.1,1.05173108]
[1646698695817,1.18226608,2509.8,2509.2,0.01006606]
[1646698696019,6.622,2510.7,2509.2,0.01006606]
[1646698696020,0.3,2509.9,2509.2,0.01006606]
[1646698696416,0.791,2510.2,2509.2,0.01006606]
[1646698696615,0.491,2510.1,2509.2,0.01006606]
[1646698697020,1.05825277,2509.5,2509.2,0.01006606]
[1646698697680,0.491,2509.4,2508.7,0.0038456]
[1646698697863,7.49462,2509.3,2508.7,0.0076912]
[1646698698065,9.96657387,2509.3,2508.7,0.0076912]
[1646698698263,9.2162,2509.3,2508.7,0.0076912]
[1646698698463,2.4162,2509.3,2508.7,0.0076912]
[1646698698664,2.4162,2509.3,2509.1,0.01006606]
[1646698698965,6.3998,2509.6,2509.1,0.01006606]
[1646698698966,5.9088,2509.6,2509.1,0.01006606]
[1646698699567,6.92082427,2509.6,2509.1,0.01006606]
[1646698699762,0.3,2509.7,2509.1,0.01006606]
[1646698699962,2.3611,2509.9,2509.1,0.01006606]
[1646698700165,2.3611,2509.9,2508.9,1.14855093]
[1646698700166,0.1991,2510.4,2509.6,0.01006606]
[1646698700368,5.4744,2510.5,2509.9,0.01006606]
[1646698700567,0.1991,2510.4,2509.9,0.01006606]
[1646698701170,1.2122,2510.6,2509.9,0.01006606]
[1646698701171,0.1991,2510.5,2509.9,0.01006606]
[1646698701611,2.3611,2510.7,2510.0,0.00410304]
[1646698701612,0.1991,2510.6,2510.0,0.00410304]
[1646698701811,0.1991,2510.6,2510.2,1.1554736]
[1646698702012,0.1991,2511.1,2510.5,0.01006606]
[1646698702219,0.1991,2511.2,2510.8,0.01006606]
[1646698702415,5.41783,2511.4,2510.8,0.01006606]
[1646698702612,5.41783,2511.4,2510.2,1.16553966]
[1646698702812,0.491,2511.0,2510.2,0.01006606]
[1646698703012,0.491,2511.0,2510.6,0.00410214]
[1646698703411,0.1991,2511.0,2510.6,0.00410214]
[1646698703611,0.1991,2511.1,2510.6,0.00410214]
[1646698703811,1.59162239,2511.1,2510.3,1.040218]
[1646698704212,1.59162239,2511.1,2510.6,0.00410206]
[1646698705013,1.59162239,2511.1,2510.4,0.01006606]
[1646698705864,0.4991,2511.1,2510.4,0.01006606]
[1646698706067,0.4991,2511.1,2510.7,0.01006606]
[1646698706068,0.1991,2511.1,2510.7,0.01006606]
[1646698706265,0.99624,2511.4,2510.7,0.01006606]
[1646698706467,0.99624,2511.4,2510.3,1.040218]
[1646698706666,1.48724,2511.4,2510.3,1.040218]
[1646698706868,0.8988247,2511.1,2510.3,1.040218]
[1646698707267,0.99644,2510.9,2510.3,1.040218]
[1646698707472,1.29644,2510.9,2510.3,1.040218]
[1646698708470,1.59644,2510.9,2509.8,0.01006606]
[1646698708669,0.99664,2510.5,2509.8,0.01006606]
[1646698708912,1.29664,2510.5,2509.8,0.01006606]
[1646698709415,0.88736384,2510.4,2509.8,0.01006606]
[1646698709611,1.88398384,2510.4,2509.8,0.00361606]
[1646698710114,1.88398384,2510.4,2510.0,0.00409609]
[1646698710716,1.18736384,2510.4,2510.0,0.00409609]
[1646698710915,1.18736384,2510.4,2509.8,0.00361606]
[1646698711118,1.19556,2510.7,2509.8,3.5]
[1646698711316,6.7372,2511.1,2510.1,0.00409601]
[1646698711514,0.1991,2511.1,2510.1,0.00409601]
[1646698711914,1.3568,2511.3,2510.1,0.00409601]
[1646698712115,2.9804402,2511.0,2510.3,1.09395872]
[1646698712317,0.99639,2511.1,2510.3,1.09395872]
[1646698712517,0.1991,2511.1,2510.4,3.5]
[1646698712772,0.1991,2511.1,2510.3,1.09395872]